Cogmind - Beta 16 --- EXPLORER MODE // 2026.01.12 @ 17:07:38 Player: K.K.Y. Result: Destroyed by H-66 Slayer with Heavy Assault Rifle Performance ------------- Evolutions (5) 2500 Regions Visited (8) 1600 Robots Destroyed (107) 535 Value Destroyed (4332) 4332 Prototype IDs (5) 100 Alien Tech Used (0) 0 Bonus (2000) 2000 TOTAL SCORE: 11067 Bonus ------- Delivered SUBCON Basin 2000 Cogmind --------- Core Integrity 0/1000 Matter 22/300 Energy 6/100 System Corruption 0% Temperature Cool (0) Movement Core (1400) Ox27 Location -5/Factory Parts ------- > --- POWER (2) -------- (None) > --- PROPULSION (4) --- (None) > --- UTILITY (10) ----- Huge Storage Unit Tech Extrapolator > --- WEAPON (2) ------- Power Sword > --- INVENTORY (25) --- Advanced Cooling System Huge Storage Unit Experimental Sensor Array Advanced Terrain Scanner Advanced Powered Armor Improved Force Field Advanced System Shield Advanced System Shield Authchip [R/Combat] Authchip [Propulsion] Authchip [Storage] Component Analysis Suite Improved Corruption Screen Improved Remote Datajack Mining Laser Multitool Dual-blade Saw Peak State ------------ > --- POWER ------------ Improved Deuterium Engine Micro Fission Core > --- PROPULSION ------- Heavy Treads Heavy Treads > --- UTILITY ---------- Improved Cryofiber Web Advanced Cooling System Huge Storage Unit IFF Parser Improved Medium Armor Plating Layered Medium Armor Plating Layered Heavy Armor Plating Tech Extrapolator Advanced System Restoration Module > --- WEAPON ----------- Long-range Proton Cannon Hypervelocity Railgun > --- INVENTORY -------- Advanced Heavy Siege Treads Advanced Cooling System Huge Storage Unit Experimental Sensor Array Advanced Terrain Scanner Advanced Powered Armor Advanced Shield Generator Improved Force Field Advanced System Shield Advanced System Shield Authchip [R/Combat] Authchip [Propulsion] Authchip [Storage] Component Analysis Suite Improved Dynamic Insulation System Improved Corruption Screen Tesla Rifle Improved Arc Projector Dispersion Rifle Improved Remote Datajack Mining Laser Multitool Power Sword Dual-blade Saw [Rating: 112] Favorites ----------- Power Improved Deuterium Engine Engine Improved Deuterium Engine Power Core Micro Fission Core Propulsion Light Treads Treads Light Treads Utility Huge Storage Unit Device Structural Scanner Storage Huge Storage Unit Processor Tech Extrapolator Hackware System Shield Protection Makeshift Light Armor Plating Weapon Flak Gun Energy Gun Heavy Laser Energy Cannon Beam Cannon Ballistic Gun Flak Gun Ballistic Cannon Gauss Cannon Launcher Mini Smartbomb Launcher Special Weapon Multitool Slashing Weapon Dual-blade Saw Build | -11 -10 -10 -10 -7 -7 -5 -5 -5 ------- Run | Yrd Mat Min Sub Rec Scr Fac Was Fac Slots Evolved 11 | . 1 . . . . 10 . . Power 1 | . . . . . . 1 . . Propulsion 2 | . . . . . . 2 . . Utility 8 | . 1 . . . . 7 . . Weapon . | . . . . . . . . . Parts Attached 89 | 6 3 2 8 7 1 43 1 18 Power 11 | 1 . . 1 2 . 5 . 2 Engine 5 | 1 . . 1 2 . . . 1 Core 6 | . . . . . . 5 . 1 Reactor . | . . . . . . . . . Propulsion 13 | 2 . . 1 3 . 6 . 1 Treads 13 | 2 . . 1 3 . 6 . 1 Leg . | . . . . . . . . . Wheel . | . . . . . . . . . Hover . | . . . . . . . . . Flight . | . . . . . . . . . Utility 39 | 1 3 1 3 . 1 21 . 9 Device 22 | . 1 . 1 . . 13 . 7 Storage 4 | 1 1 . 1 . . 1 . . Processor 1 | . . . . . . 1 . . Hackware 2 | . . . . . . 2 . . Protection 10 | . 1 1 1 . 1 4 . 2 Artifact . | . . . . . . . . . Weapon 26 | 2 . 1 3 2 . 11 1 6 Energy Gun 6 | . . . 1 . . 2 . 3 Energy Cannon 4 | . . . 1 . . 3 . . Ballistic Gun 11 | 2 . 1 1 1 . 4 . 2 Ballistic Cannon 1 | . . . . 1 . . . . Launcher 1 | . . . . . . 1 . . Special Weapon 1 | . . . . . . 1 . . Impact Weapon . | . . . . . . . . . Slashing Weapon 2 | . . . . . . . 1 1 Piercing Weapon . | . . . . . . . . . Special Melee Weapon . | . . . . . . . . . Unidentified Prototypes 1 | . . . . . . 1 . . Parts Lost 37 | . . . . . . 13 3 21 Power 5 | . . . . . . 2 1 2 Propulsion 4 | . . . . . . 1 . 3 Utility 18 | . . . . . . 7 1 10 Weapon 10 | . . . . . . 3 1 6 Highest Loss Streak 20 | . . . . . . 5 2 20 To Critical Strikes 3 | . . . . . . . 1 2 Average Backups 18 | 1 5 8 11 15 25 24 24 23 Power . | . . . . . 1 . . . Propulsion . | . . 1 1 . . . . . Utility 11 | . 2 4 7 10 15 14 16 14 Weapon 5 | . 2 3 3 4 7 6 5 5 Tool/Special . | . . . . . . . . . Unused Backups 42 | . . . 3 7 4 9 4 15 Power 2 | . . . . 1 . . 1 . Propulsion 1 | . . . 1 . . . . . Utility 23 | . . . 1 3 1 4 1 13 Weapon 12 | . . . 1 3 2 3 2 1 Tool/Special 4 | . . . . . 1 2 . 1 Average Slot Usage (%) 92 | . 98 100 100 100 100 81 66 72 Engine 8 | . 12 12 12 12 12 1 . 4 Core 2 | . . . . . . 9 10 4 Treads 20 | . 24 25 25 25 25 13 11 10 Device 14 | . 11 12 12 12 12 21 16 20 Storage 9 | . 12 12 12 12 12 5 5 5 Processor 1 | . . . . . . 4 5 5 Protection 11 | . 11 12 12 12 12 10 7 9 Energy Cannon 4 | . . . 1 9 . 3 5 4 Ballistic Gun 11 | . 24 25 20 12 12 3 1 2 Ballistic Cannon 2 | . . . . 2 12 . . . Peak Build Rating 112 | 6 10 11 35 40 32 109 109 112 Average Rating 48 | 4 9 10 15 32 31 94 95 100 On Entrance 34 | . 6 10 11 35 31 32 109 80 Avg Prop Armor Cover (%) 8 | . . . . . . . . 8 Naked Turns . | . . . . . . . . . Heaviest Build 159 | 19 33 33 95 106 109 159 159 153 Greatest Support 140 | 40 40 40 40 48 48 140 140 140 Greatest Overweight (x) 2 | . . . 2 2 2 2 1 1 Average Overweight (x) 1 | . . . . 2 2 . . . Largest Inventory Capacity 25 | 10 15 15 25 25 25 25 25 25 Average Capacity 22 | 8 12 15 16 25 25 25 25 25 Most Carried 25 | 5 8 10 25 25 25 25 25 25 Average Carried 20 | 1 5 8 13 22 24 24 24 24 Final Capacity 25 | 10 15 15 25 25 25 25 25 25 Final Carried 25 | 2 8 10 25 25 25 25 25 17 Class Distribution -------------------- 100% | Hacker-Mutant Dominant Class ---------------- Hacker-Mutant | -10/Materials Hacker-Mutant | -10/Mines Hacker-Mutant | -10/Subcaves Hacker-Mutant | -7/Recycling Hacker-Mutant | -7/Scraptown Hacker-Mutant | -5/Factory Hacker-Mutant | -5/Waste Hacker-Mutant | -5/Factory Resources | -11 -10 -10 -10 -7 -7 -5 -5 -5 ----------- Run | Yrd Mat Min Sub Rec Scr Fac Was Fac Matter Collected 2678 | 314 306 50 133 173 10 1450 24 218 Remotely . | . . . . . . . . . Salvage Created 4946 | 183 308 55 135 408 . 3016 . 841 Parts 257 | 18 17 5 11 16 . 138 . 52 Haulers Intercepted 3 | . 1 . . . . 2 . . Recyclers Shooed 2 | . . 1 . . . . . 1 Parts Field Recycled . | . . . . . . . . . Retrieved Matter . | . . . . . . . . . Parts Self-Destructed . | . . . . . . . . . Prevented . | . . . . . . . . . Parts Restored . | . . . . . . . . . Kills | -11 -10 -10 -10 -7 -7 -5 -5 -5 ------- Run | Yrd Mat Min Sub Rec Scr Fac Was Fac Combat Hostiles Destroyed 76 | . 6 2 2 4 . 51 . 11 Melee 1 | . . . . . . . . 1 Guns 39 | . 6 2 2 1 . 22 . 6 Cannons 17 | . . . . 3 . 12 . 2 AOE 11 | . . . . . . 11 . . Classes Destroyed 17 | 2 5 1 3 . . 4 . 2 Worker 3 | . . 1 . . . 1 . 1 Builder 4 | . 1 . . . . 3 . . Tunneler 5 | 5 . . . . . . . . Hauler 3 | . 1 . . . . 2 . . Recycler 7 | 1 . . . 2 . 3 . 1 Operator 3 | . . . . . . 2 . 1 Turret 2 | . . . 2 . . . . . Watcher 4 | . 3 . . . . 1 . . Swarmer 17 | . 4 2 . . . 8 . 3 Grunt 22 | . 2 . . . . 18 . 2 Duelist 1 | . . . . . . 1 . . Sentry 8 | . . . 1 4 . 2 . 1 Specialist 2 | . . . . . . . . 2 Hunter 8 | . . . . . . 8 . . Programmer 16 | . . . . . . 14 . 2 Behemoth 1 | . . . . . . . . 1 Subdweller 1 | . . . 1 . . . . . Best Kill Streak 8 | 6 2 2 2 3 . 8 . 3 Combat Bots Only 5 | . 2 2 1 1 . 5 . 3 Max Kills in Single Turn 4 | 1 2 1 1 1 . 4 . 1 Gunslinging 1 | . 1 . . . . . . . Exploded 3 | . . . . . . 3 . . Melee 1 | . . . . . . . . 1 Uniques/NPCs Destroyed . | . . . . . . . . . Combat | -11 -10 -10 -10 -7 -7 -5 -5 -5 -------- Run | Yrd Mat Min Sub Rec Scr Fac Was Fac Hostile Shots Fired 1156 | . 32 2 26 90 . 532 13 461 Missed 302 | . 8 . 8 18 . 144 1 123 Hits 854 | . 24 2 18 72 . 388 12 338 Melee 14 | . . . . . . 2 12 . Projectile 840 | . 24 2 18 72 . 386 . 338 AOE 2 | . . . . . . 2 . . Critical Strikes 41 | . 2 . 1 . . 20 8 10 Damage Taken 8769 | . 195 9 175 308 . 4299 341 3442 Core 1109 | . 17 . 36 54 . 366 32 604 Absorbed by Shields 153 | . . . . . . . . 153 Ignored by Resistances 6486 | . 123 6 85 227 . 3563 197 2285 Regen/Repaired (Parts) 432 | . . . . . . 432 . . Core Remaining (%) 78 | 100 . . . . 57 . . . Volleys Fired 325 | 9 41 5 13 17 . 167 13 60 Largest 2 | 2 2 2 2 2 . 2 2 2 Hottest 154 | 40 40 40 88 88 . 154 116 128 Shots Fired 585 | 18 82 10 26 34 . 297 25 93 Gun 382 | 18 82 10 26 17 . 168 12 49 Cannon 191 | . . . . 17 . 117 13 44 Launcher 12 | . . . . . . 12 . . Special . | . . . . . . . . . Kinetic 327 | 18 82 10 22 17 . 122 12 44 Thermal 118 | . . . 4 17 . 94 . 3 Explosive 12 | . . . . . . 12 . . Electromagnetic 128 | . . . . . . 69 13 46 Robot Hit Streak 56 | 10 27 9 25 56 . 29 31 43 Robot Miss Streak 6 | 1 2 1 . 1 . 6 3 1 Penetration Max 1 | . . . . . . 1 1 1 Secondary Targets 2 | . 1 . . . . 1 . . Max Gunslinging Chain 1 | . 1 . . . . 1 . . Shots Hit Robots 501 | 14 69 8 22 29 . 248 22 89 Core Hits 250 | 6 16 5 8 27 . 156 2 30 Critical Kills 15 | . . . . . . 8 . 7 Critical Parts Destroyed 18 | . 2 1 . . . 5 . 10 Critical Strikes 45 | . 2 1 . . . 19 3 20 Burn 2 | . . . . . . 2 . . Destroy 37 | . 2 1 . . . 13 3 18 Blast 1 | . . . . . . 1 . . Corrupt 5 | . . . . . . 3 . 2 Melee Attacks 2 | . . . . . . . . 2 Impact . | . . . . . . . . . Slashing 2 | . . . . . . . . 2 Piercing . | . . . . . . . . . Sneak Attacks . | . . . . . . . . . Combat Hostiles . | . . . . . . . . . Follow-up Attacks . | . . . . . . . . . Damage Inflicted 10616 | 178 903 106 289 629 . 6881 128 1502 Guns 5006 | 178 903 106 289 334 . 2552 98 546 Cannons 3745 | . . . . 295 . 2598 30 822 Explosions 1785 | . . . . . . 1727 . 58 Melee 69 | . . . . . . . . 69 Ramming 11 | . . . . . . 4 . 7 Kinetic 3808 | 178 903 106 228 334 . 1536 98 425 Thermal 3211 | . . . 61 295 . 2704 . 151 Explosive 1167 | . . . . . . 1167 . . Electromagnetic 2350 | . . . . . . 1470 30 850 Impact . | . . . . . . . . . Slashing 69 | . . . . . . . . 69 Piercing . | . . . . . . . . . Highest Corruption 9 | . . . . 1 . 9 9 9 Average Corruption 3 | . . . . 1 . 3 9 5 Corruption Purged 15 | . . . . . . 5 . 10 Corruption Blocked . | . . . . . . . . . Effects 88 | . . . . 16 . 53 13 6 Message Errors 27 | . . . . 4 . 19 3 1 Matter Fused 17 | . . . . 2 . 12 2 1 Heat Flow Errors 11 | . . . . 4 . 6 1 . Energy Discharges 13 | . . . . 3 . 6 2 2 Parts Rejected 4 | . . . . . . 1 3 . Parts Fused 1 | . . . . 1 . . . . Data Loss (minor) 6 | . . . . . . 5 . 1 Data Loss (major) 4 | . . . . 1 . 1 2 . Misfires 1 | . . . . . . 1 . . Alerts 3 | . . . . 1 . 1 . 1 Weapon Failures 1 | . . . . . . 1 . . Overload Shots . | . . . . . . . . . Overflow Damage 103 | . . . . . . 26 . 77 Projectiles 100 | . . . . . . 26 . 74 Explosions 3 | . . . . . . . . 3 Melee . | . . . . . . . . . Knockbacks 3 | . . . . . . 3 . . Impact . | . . . . . . . . . Kinetic 3 | . . . . . . 3 . . Secondary . | . . . . . . . . . Self-Inflicted Damage 109 | . . . . . . 109 . . Shots 3 | . . . . . . 3 . . Rammed 3 | . . . . . . 1 . 2 Targets Rammed 3 | . . . . . . 1 . 2 Kicked . | . . . . . . . . . Crushed . | . . . . . . . . . Highest Temperature 533 | . 46 . 3 300 . 524 21 533 Average Temperature 133 | . 19 . 3 115 . 147 10 156 Received Heat Transfer 2178 | . 129 . 111 156 . 1342 27 413 Effects 21 | . . . . . . 12 . 9 Shutdowns 9 | . . . . . . 6 . 3 Energy Bleed 2 | . . . . . . 1 . 1 Interference 4 | . . . . . . . . 4 Matter Decay 1 | . . . . . . . . 1 Damage (major) 4 | . . . . . . 4 . . Damage (core) 1 | . . . . . . 1 . . Siege Activations . | . . . . . . . . . Martial Activations . | . . . . . . . . . Shielding Activations . | . . . . . . . . . Robots Disrupted 1 | . . . . . . . . 1 Combat Hostiles 1 | . . . . . . . . 1 Robots Corrupted 6 | . . . . . . 4 . 2 Combat Hostiles 6 | . . . . . . 4 . 2 Parts Fried 18 | . . . . . . 13 . 5 Impact Corruptions . | . . . . . . . . . Robots Melted 2 | . . . . . . 2 . . Combat Hostiles 2 | . . . . . . 2 . . Parts Melted 10 | . . . . 1 . 9 . . Heat Transferred 4941 | . . . 148 629 . 4003 . 161 Parts Sabotaged . | . . . . . . . . . Parts Stolen . | . . . . . . . . . Parts Stripped . | . . . . . . . . . Power Chain Reactions 3 | . . . . . . 2 . 1 Alert | -11 -10 -10 -10 -7 -7 -5 -5 -5 ------- Run | Yrd Mat Min Sub Rec Scr Fac Was Fac Maximum Alert Level . | . . . . . . . . . Low Security (%) 100 | 100 100 100 . 100 . 100 100 100 Level 1 . | . . . . . . . . . Level 2 . | . . . . . . . . . Level 3 . | . . . . . . . . . Level 4 . | . . . . . . . . . Level 5 . | . . . . . . . . . High Security . | . . . . . . . . . Max Security . | . . . . . . . . . Peak Influence 180 | 10 57 50 . 20 . 180 7 60 Initial 7 | . . . . . . . 7 . Average 13 | 2 6 1 . . . 35 . 6 Influence Increases 2588 | 30 209 55 135 128 . 1730 . 301 Destroy 0b10 Robot/C 1540 | . 120 40 60 80 . 1020 . 220 Destroy 0b10 Robot/NC 145 | 30 25 5 . 10 . 60 . 15 Destroy Leader 332 | . 38 10 . . . 234 . 50 Successful Hack 112 | . 10 . . 38 . 64 . . Disable Machine 52 | . . . . . . 48 . 4 Destroy Structure 257 | . 1 . . . . 244 . 12 Lose Combat Pursuer 150 | . 15 . 75 . . 60 . . Influence Decreases 2578 | 30 209 55 135 128 . 1699 31 291 Entered New Map 24 | . . . . . . . 24 . Time Decay 2374 | 30 209 55 135 128 . 1579 7 231 Lost Part 180 | . . . . . . 120 . 60 Squads Dispatched 21 | . . . . . . 19 . 2 Investigation 6 | . . . . . . 6 . . Extermination 8 | . . . . . . 7 . 1 Reinforcement 4 | . . . . . . 3 . 1 Assault . | . . . . . . . . . Garrison 3 | . . . . . . 3 . . Intercept . | . . . . . . . . . Searches Triggered . | . . . . . . . . . Construction Impeded 1 | . . . . . . 1 . . Haulers Reinforced . | . . . . . . . . . Active Scanning Responses . | . . . . . . . . . Cargo Convoy Interrupts 1 | . . . . . . . . 1 Stealth | -11 -10 -10 -10 -7 -7 -5 -5 -5 --------- Run | Yrd Mat Min Sub Rec Scr Fac Was Fac Distress Signals 3 | . 1 . . . . 1 . 1 Communications Jammed . | . . . . . . . . . Distress Signals . | . . . . . . . . . Times Spotted 114 | . 14 2 5 4 . 59 6 24 Peak Tracking Total 8 | . 3 2 2 1 . 5 6 8 Tactical Retreats 7 | . 1 . 2 . . 4 . . Traps | -11 -10 -10 -10 -7 -7 -5 -5 -5 ------- Run | Yrd Mat Min Sub Rec Scr Fac Was Fac Traps Triggered 10 | . 4 . 1 . . 4 . 1 Indirectly . | . . . . . . . . . Trap Hack Attempts . | . . . . . . . . . Triggered . | . . . . . . . . . Disarmed . | . . . . . . . . . Reprogrammed . | . . . . . . . . . Reused . | . . . . . . . . . Traps Extracted . | . . . . . . . . . Installed . | . . . . . . . . . Triggered . | . . . . . . . . . Machines | -11 -10 -10 -10 -7 -7 -5 -5 -5 ---------- Run | Yrd Mat Min Sub Rec Scr Fac Was Fac Machines Disabled 13 | . . . . . . 12 . 1 Max in Single Turn 7 | . . . . . . 7 . 1 Garrison Access 1 | . . . . . . . . 1 Machines Repaired 1 | . . . . . . 1 . . Machines Dismantled . | . . . . . . . . . Machines Sabotaged . | . . . . . . . . . Overloaded Fab Kills . | . . . . . . . . . Hacking | -11 -10 -10 -10 -7 -7 -5 -5 -5 --------- Run | Yrd Mat Min Sub Rec Scr Fac Was Fac Machines Accessed 27 | . 1 . 2 9 . 13 . 2 Terminals 12 | . 1 . . 5 . 6 . . Fabricators 3 | . . . . . . 3 . . Repair Stations 1 | . . . . . . 1 . . Recycling Units 6 | . . . . 4 . 1 . 1 Scanalyzers 2 | . . . . . . 2 . . Garrison Access 1 | . . . . . . . . 1 Total Hacks 64 | . 2 . 3 18 . 38 . 3 Successful 46 | . 2 . 3 12 . 27 . 2 Failed 18 | . . . . 6 . 11 . 1 Catastrophic 3 | . . . . 1 . 2 . . Database Lockouts . | . . . . . . . . . Manual 12 | . 1 . . 6 . 5 . . Terminals 31 | . 2 . . 12 . 17 . . Fabricators 9 | . . . . . . 9 . . Repair Stations 4 | . . . . . . 4 . . Recycling Units 9 | . . . . 6 . 1 . 2 Scanalyzers 7 | . . . . . . 7 . . Garrison Access 1 | . . . . . . . . 1 Terminal Hacks 15 | . 1 . 3 4 . 7 . . Record 6 | . . . 1 . . 5 . . Part Schematic 3 | . . . . 2 . 1 . . Robot Analysis 3 | . 1 . . 1 . 1 . . Prototype ID Bank 1 | . . . . 1 . . . . Open Door 1 | . . . 1 . . . . . Release Object 1 | . . . 1 . . . . . Fabricator Hacks 8 | . . . . . . 8 . . Load Schematic 4 | . . . . . . 4 . . Build 4 | . . . . . . 4 . . Repair Station Hacks 2 | . . . . . . 2 . . Scan Component 1 | . . . . . . 1 . . Repair 1 | . . . . . . 1 . . Recycling Unit Hacks 6 | . . . . 4 . 1 . 1 Retrieve Components 6 | . . . . 4 . 1 . 1 Scanalyzer 6 | . . . . . . 6 . . Insert Component 3 | . . . . . . 3 . . Analyze 3 | . . . . . . 3 . . Garrison Access Hacks 1 | . . . . . . . . 1 Seal Access 1 | . . . . . . . . 1 Unauthorized Hacks 8 | . 1 . . 4 . 3 . . Terminals 7 | . 1 . . 3 . 3 . . Assimilate 1 | . . . . . . 1 . . Botnet 6 | . 1 . . 3 . 2 . . Fabricators . | . . . . . . . . . Repair Stations . | . . . . . . . . . Recycling Units 1 | . . . . 1 . . . . Reject 1 | . . . . 1 . . . . Scanalyzers . | . . . . . . . . . Garrison Access . | . . . . . . . . . Data Cores Recovered 1 | . . . . . . 1 . . Used . | . . . . . . . . . Hacking Detections 19 | . 1 . . 6 . 11 . 1 Full Trace Events 7 | . . . . 2 . 5 . . Feedback Events 1 | . . . . 1 . . . . Corruption 1 | . . . . 1 . . . . Feedback Blocked . | . . . . . . . . . Robot Schematics Acquired . | . . . . . . . . . Robots Built . | . . . . . . . . . Authchips . | . . . . . . . . . Time . | . . . . . . . . . Total Robot Build Rating . | . . . . . . . . . Part Schematics Acquired 18 | . . . . 2 . 10 2 4 Parts Built 4 | . . . . . . 4 . . Authchips . | . . . . . . . . . Time 189 | . . . . . . 189 . . Total Part Build Rating 20 | . . . . . . 20 . . Part Studies Acquired . | . . . . . . . . . Parts Repaired 1 | . . . . . . 1 . . Time 28 | . . . . . . 28 . . Parts Recycled . | . . . . . . . . . Recycled Matter . | . . . . . . . . . Retrieved Matter . | . . . . . . . . . Retrieved Components 28 | . . . . 19 . 7 . 2 Parts Scanalyzed 3 | . . . . . . 3 . . Part Schematics Acquired 3 | . . . . . . 3 . . Parts Damaged . | . . . . . . . . . Bothacking | -11 -10 -10 -10 -7 -7 -5 -5 -5 ------------ Run | Yrd Mat Min Sub Rec Scr Fac Was Fac Used RIF Installer . | . . . . . . . . . Robots Hacked . | . . . . . . . . . Non-combat . | . . . . . . . . . Combat . | . . . . . . . . . Robot Hacks Applied . | . . . . . . . . . Relay Couplers Released . | . . . . . . . . . Fabnet Peak Effective % . | . . . . . . . . . Robots Rewired . | . . . . . . . . . Allies Hacked . | . . . . . . . . . Hacks Repelled . | . . . . . . . . . Allies | -11 -10 -10 -10 -7 -7 -5 -5 -5 -------- Run | Yrd Mat Min Sub Rec Scr Fac Was Fac Total Allies 1 | . . . . . . . 1 . Largest Group 1 | . . . . . . . 1 . Highest-Rated Group 31 | . . . . . . . 31 . Highest-Rated Ally 31 | . . . . . . . 31 . Total Orders . | . . . . . . . . . Ally Attacks 15 | . . . . . . . 15 . Total Damage 239 | . . . . . . . 239 . Kills . | . . . . . . . . . Allies Corrupted . | . . . . . . . . . Allies Melted . | . . . . . . . . . Intel | -11 -10 -10 -10 -7 -7 -5 -5 -5 ------- Run | Yrd Mat Min Sub Rec Scr Fac Was Fac Active Infowar (turns) 14120 | . 817 1015 1496 4057 2483 3549 86 617 IFF 617 | . . . . . . . . 617 Terrain 2031 | . 817 1015 199 . . . . . Structural 11472 | . . . 1297 4057 2483 3549 86 . Traps 732 | . . . . . . 732 . . Robot Analysis Total 3 | . 1 . . 1 . 1 . . Derelict Logs Recovered . | . . . . . . . . . Drone Launches . | . . . . . . . . . Drone Recoveries . | . . . . . . . . . Exploration | -11 -10 -10 -10 -7 -7 -5 -5 -5 ------------- Run | Yrd Mat Min Sub Rec Scr Fac Was Fac Turns Passed 15057 | 114 881 1015 1496 4057 2483 3626 293 1092 Spaces Moved 4923 | 63 455 608 386 1216 775 1051 143 226 Core 32 | 32 . . . . . . . . Treads 4891 | 31 455 608 386 1216 775 1051 143 226 Legs . | . . . . . . . . . Wheels . | . . . . . . . . . Hover . | . . . . . . . . . Flight . | . . . . . . . . . Fastest Speed 50 | 50 160 160 160 320 320 160 160 160 Average Speed 244 | 104 160 160 186 320 320 235 172 213 Slowest Speed 320 | 160 160 160 320 320 320 320 240 250 Overloaded Moves . | . . . . . . . . . Propulsion Burnouts . | . . . . . . . . . Robots Hopped . | . . . . . . . . . Potential Cave-ins . | . . . . . . . . . Cave-ins Triggered . | . . . . . . . . . Exploration Rate (%) 54 | 3 82 97 29 99 51 26 97 5 Regions Visited 8 Branch Regions 4 Pre-discovered Areas . | . . . . . . . . . Known Exits Taken 6 | 1 1 1 1 1 1 . . . Unknown Exits Taken . | . . . . . . . . . Scrap Searched 8 | . . 1 3 . 4 . . . Spaces Dug . | . . . . . . . . . Terrain Destroyed 121 | . . . . . . 116 . 5 Melee . | . . . . . . . . . Projectile 6 | . . . . . . 6 . . AOE 114 | . . . . . . 109 . 5 Terrain Rammed . | . . . . . . . . . Walls Destroyed . | . . . . . . . . . Machines Disabled . | . . . . . . . . . Actions | -11 -10 -10 -10 -7 -7 -5 -5 -5 --------- Run | Yrd Mat Min Sub Rec Scr Fac Was Fac Total 7354 | 93 526 640 1140 1362 784 1911 166 732 Wait 1824 | 9 12 20 718 84 . 567 . 414 Move 4916 | 62 454 607 385 1215 774 1051 142 226 Hop . | . . . . . . . . . Pick Up 98 | 7 12 4 8 23 4 32 3 5 Fast Attach 32 | 1 . . . . . 20 3 8 Attach 40 | 5 5 . . 1 . 18 . 11 Detach 4 | . . . . 1 . 3 . . Swap 37 | . 1 2 8 6 1 17 . 2 Drop 72 | . 1 2 8 15 5 34 5 2 Fire 325 | 9 41 5 13 17 . 167 13 60 Melee 2 | . . . . . . . . 2 Ram . | . . . . . . . . . Kick . | . . . . . . . . . Crush 3 | . . . . . . 1 . 2 Escape Stasis . | . . . . . . . . . Rewire . | . . . . . . . . . Trap . | . . . . . . . . . Miscellaneous 1 | . . . . . . 1 . . Route ------- -11/Scrapyard -10/Materials (discovered 5 exits: *Mat x2 / *Min x2 / *Sub) -10/Mines (discovered 3 exits: *Mat x2 / *Sub) -10/Subcaves (discovered 2 exits: *Mat / *Rec) -7/Recycling (discovered 2 exits: *Fac / *Scr) -7/Scraptown -5/Factory -5/Waste -5/Factory History --------- Turn | Location | Event 19 | -11/Scrapyard | Identified exit to Materials 19 | -11/Scrapyard | Discovered exit to Materials (range 16) 115 | -11/Scrapyard | Entered Materials 115 | -10/Materials | Evolved 1 slot: Utility x1 213 | -10/Materials | Identified exit to Subcaves 213 | -10/Materials | Discovered exit to Subcaves (range 6) 294 | -10/Materials | Identified exit to Mines 294 | -10/Materials | Discovered exit to Mines (range 9) 314 | -10/Materials | Build established: Hacker-Mutant 386 | -10/Materials | Discovered exit to Mines (range 16) 615 | -10/Materials | Derelicts attacked the area 720 | -10/Materials | Identified exit to Materials 720 | -10/Materials | Discovered exit to Materials (range 15) 961 | -10/Materials | Discovered exit to Materials (range 16) 996 | -10/Materials | Entered Mines 1097 | -10/Mines | Found a Scrap Suit stashed away for nefarious purposes 1155 | -10/Mines | YI-UF0 nonchalantly dropped a Grenade Launcher on the ground 1187 | -10/Mines | Discovered exit to Materials (range 6) 1259 | -10/Mines | Discovered exit to Materials (range 10) 1681 | -10/Mines | Discovered exit to Subcaves (range 13) 1774 | -10/Mines | Found a damaged Exp. Sensor Array with a note attached 1777 | -10/Mines | Found Prototype Device 2011 | -10/Mines | Entered Subcaves 2012 | -10/Subcaves | Approached by a straggling Scientist 2054 | -10/Subcaves | Identified exit to Materials 2054 | -10/Subcaves | Discovered exit to Materials (range 8) 2058 | -10/Subcaves | Shifting Twisted Machinery released Mak. Light Armor Plating 3139 | -10/Subcaves | Identified exit to Recycling 3139 | -10/Subcaves | Discovered exit to Recycling (range 14) 3308 | -10/Subcaves | Found SUBCON Basin 3507 | -10/Subcaves | Entered Recycling 4044 | -7/Recycling | Identified exit to Factory 4044 | -7/Recycling | Discovered exit to Factory (range 15) 5263 | -7/Recycling | Scanned before Scraplab entrance 5302 | -7/Recycling | Identified exit to Scraptown 5302 | -7/Recycling | Discovered exit to Scraptown (range 11) 5311 | -7/Recycling | Entered Scraplab 7564 | -7/Recycling | Entered Scraptown 7564 | -7/Scraptown | System corruption cleaned by C-Scrubber 8308 | -7/Scraptown | Discovered exit to Factory (range 13) 8501 | -7/Scraptown | Visited Shadow of the Wyrm 8546 | -7/Scraptown | Visited Symbiants 8568 | -7/Scraptown | Visited Cyclists 8639 | -7/Scraptown | Visited Assassins FH 8738 | -7/Scraptown | Visited SPCMW 8799 | -7/Scraptown | Visited TADAMA 8856 | -7/Scraptown | Visited The Evicted 10047 | -7/Scraptown | Entered Factory 10047 | -5/Factory | Evolved 10 slots: Power x1, Propulsion x2, Utility x7 10490 | -5/Factory | Tech Extrapolator generated special schematic: Deep Structural Scanner 10543 | -5/Factory | Lost 4 parts (3u1w) 10899 | -5/Factory | Found Prototype Launcher 10899 | -5/Factory | Identified Mni. Smartbomb Launcher 10958 | -5/Factory | Garrison activated, responded to threat 11268 | -5/Factory | Lost 5 parts (2p1n1u1w) 11613 | -5/Factory | Fabricated Imp. Cryofiber Web (x2) 11661 | -5/Factory | Fabricated Deep Structural Scanner (x1) 11741 | -5/Factory | Identified exit to Upper Caves 11741 | -5/Factory | Discovered exit to Upper Caves (range 5) 11832 | -5/Factory | Repaired Hvy. Treads 12900 | -5/Factory | Fabricated Adv. System Shield (x1) 13673 | -5/Factory | Sucked down chute 13673 | -5/Factory | Entered Waste 13674 | -5/Waste | Met a frightened Derelict 13704 | -5/Waste | Spotted C-40 Crusher 13715 | -5/Waste | Spotted C-40 Crusher 13756 | -5/Waste | Spotted C-40 Crusher 13759 | -5/Waste | Crushed by Compactor (1 part destroyed) 13762 | -5/Waste | Crushed by Compactor (1 part destroyed) 13793 | -5/Waste | Spotted C-40 Crusher 13797 | -5/Waste | Spotted C-40 Crusher 13800 | -5/Waste | Spotted C-40 Crusher 13849 | -5/Waste | Identified exit to Factory 13849 | -5/Waste | Discovered exit to Factory (range 13) 13956 | -5/Waste | Found Adv. Powered Armor 13959 | -5/Waste | Crushed by Compactor (0 parts destroyed, 1 dropped) 13966 | -5/Waste | Entered Factory 14691 | -5/Factory | Spotted B-75 Beast 14766 | -5/Factory | Core integrity fell below 50% 14787 | -5/Factory | Destroyed B-75 Beast 14956 | -5/Factory | Tech Extrapolator generated special schematic: Energy Deflector 14973 | -5/Factory | Cargo convoy interrupted 15035 | -5/Factory | Core integrity fell below 20% 15058 | -5/Factory | Destroyed by H-66 Slayer with Heavy Assault Rifle Last Messages --------------- 15044_ Penetrated by Slug. 15044_ Slug penetrates H-66 Slayer. 15045_ Wall collapses. 15046_ M-28 Smith repairs H-66 Slayer. 15047_ Penetrated by Slug. 15048_ Slug penetrates Wall. 15048_ Penetrated by Slug. 15048_ X-77 Beamer destroyed. 15049_ M-28 Smith repairs H-66 Slayer Phase Shifter. 15050_ Slug penetrates Wall. 15050_ Penetrated by Slug. 15051_ Slug penetrates Wall. 15054_ Penetrated by Slug. 15056_ Wall collapses. 15057_ Penetrated by Slug. 15057_ Imp. Arc Projector destroyed. 15058_ Slug penetrates Wall. 15058_ Penetrated by Slug. 15058_ Slug penetrates H-66 Slayer. Map ----- +----------------------------------------------------+ | ?????????????????????????????????????????????????? | | ?????????????????????????????????????????????????? | | ?????????????????????????????????????????????????? | | ?????????????????????????????????????????????????? | | ?????????????????????????????????????????????????? | | ?????????????????????????????????????????????????? | | ?????????????????????????????????????????????????? | | ?????????????????????????????????????????????????? | | ?????????????????????????????????????????????????? | | ?????????????????????????????????????????????????? | | ?????????????????????????????????????????????????? | | ??????????????????????????????????????????????? | | ????????????????????????????????????????????? | | ??????????????????????????????????????????? | | ????????????????????????????????????????? | | ?????????????????????????????????????????? | | ????????????????????????????????????????? | | ####+###????????????????????????????????? | | ????????????????????????????????? | | #????????????????????????????????? | | " "" "" "" #????????????????????????????????? | | T "" ^"" "" ###??????????????????????????????? | | " """ """ """ #??????????????????????????????? | | """ """ """ ???????????????????????????????? | | !!^""" """ " ############ #???????????????????? | | !!^ ^ uh h @% #???????????????????? | | ! |!!h!h##### #???????????????????? | | !!m =%![== #?????????????????????????? | | !!! !!=%*= #?????????????????????????? | | ! ! "%"*!%%|*!!#?????????????????????????? | | ######+#####+#######+#######?????????????????????? | | "# # #?????????????????????? | | ## # #?????????????????????? | | """## # #?????????????????????? | | """## # #?????????????????????? | | ## # """ """ #?????????????????????? | | "#"""" # """ """ #?????????????????????? | | ##"""" # """ """ #?????????????????????? | | ##"""" # #?????????????????????? | | ##%##"""" # """ """ #?????????????????????? | | ## #???"" #? """ """ #?????????????????????? | | ?###????" =#???"" "??? #?????????????????????? | | ????????" %#???? ???? #?????????????????????? | | ???????? [%#????##?????##?????????????????????? | | ???????? **???????????????????????????????????? | | ?????????? =%???????????????????????????????????? | | ?????????????????????????????????????????????????? | | ?????????????????????????????????????????????????? | | ?????????????????????????????????????????????????? | | ?????????????????????????????????????????????????? | +----------------------------------------------------+ Best States ------------- Heat Dissipation 73 Energy Generation 30 Energy Capacity 505 Matter Stores 300 Matter Capacity 300 Sight Range 16 Terrain Scan Range 16 Terrain Scan Density 10 Base Temperature (-) 150 EM Shielding 3 Armor Coverage 1200 Resistance: KI 35 Resistance: TH 60 Resistance: EX 35 Resistance: EM 60 Resistance: I 35 Resistance: S 35 Resistance: P 35 Evasion (%) 50 Recoil Reduction 4 Offensive Hacking 30 Defensive Hacking 10 Authchip Count 3 Item Schematics ----------------- Imp. Cryofiber Web | -7/Recycling | Hacked Flexi-carbon Leg | -7/Recycling | Hacked Deep Structural Scanner | -5/Factory | Extrapolated Mak. System Restoration Module | -5/Factory | Extrapolated Mak. Heavy Armor Plating | -5/Factory | Extrapolated Adv. System Restoration Module | -5/Factory | Scanalyzed Mak. System Shield | -5/Factory | Extrapolated Adv. Point Defense System | -5/Factory | Hacked Adv. System Shield | -5/Factory | Scanalyzed Hvy. Treads | -5/Factory | Scanalyzed Mak. Trap Scanner | -5/Factory | Extrapolated Mak. Terrain Scanner | -5/Factory | Extrapolated Mak. Coolant Network | -5/Waste | Extrapolated Hvy. Beamcaster | -5/Waste | Extrapolated Mak. Medium Armor Plating | -5/Factory | Extrapolated Mak. Thermal Plating | -5/Factory | Extrapolated Mak. Ablative Armor | -5/Factory | Extrapolated Energy Deflector | -5/Factory | Extrapolated Robot Schematics ------------------ None Fabricated ------------ Imp. Cryofiber Web | x2 | -5/Factory Deep Structural Scanner | x1 | -5/Factory Adv. System Shield | x1 | -5/Factory Repaired ---------- Hvy. Treads | 13% | -5/Factory Studied --------- None Alien Tech Used ----------------- None Achievements -------------- None Challenges ------------ None Game ------ Seed BoltTacticalSpear Manual? 0 Play Time 01:00:16 Cumulative 274.8 hours Start 2026.01.12 @ 16:09:12 End 2026.01.12 @ 17:07:38 Sessions 1 Manual Loads 0 Difficulty Explorer Special Mode None Game No. 429 Rogue 0 Adventurer 0 Explorer 429 Win Type - Total 0 Types 0/0/0/0/0/0/0/0/0/0 Lore% 73 Gallery% 69 Achievement% 55 Wizard Run 0 Options --------- Layout 1 ASCII 0 Keyboard 0 Movement Mouse Keybinds 1 Fullscreen 1 Font 24/Smallcaps Map View 50x35 Zoom Use 0% Tactical HUD 1 Map Filters NONE Filters NONE Steam 1 RUN: f2557368-538c-406c-95e8-84eee3cb1271